bitfinex/quotes_ETHUSD_20250115
["timestamp","ask_amount","ask_price","bid_price","bid_amount"]
[1736915066750,3.50025713,3232.2,3231.5,0.185]
[1736915066914,0.03095473,3232.1,3231.5,0.185]
[1736915067386,3.50025713,3232.2,3231.5,0.185]
[1736915067588,0.03095473,3232.1,3231.5,0.185]
[1736915067795,0.8241,3233.2,3231.7,2.89983693]
[1736915068027,0.8241,3233.2,3232.0,0.8155]
[1736915068028,3.70056333,3233.0,3232.0,0.8155]
[1736915068215,3.09348,3232.7,3232.0,0.8155]
[1736915068415,3.03095473,3232.6,3232.1,0.185]
[1736915069121,3.09363,3232.5,3232.1,0.185]
[1736915069341,0.03095473,3232.4,3232.1,0.185]
[1736915071638,0.3434132,3232.4,3232.2,0.185]
[1736915071853,3.09377,3232.3,3232.2,0.185]
[1736915073621,3.09377,3232.3,3231.7,0.8155]
[1736915073824,0.03095473,3232.2,3231.8,0.185]
[1736915075016,3.09416,3231.9,3231.8,0.185]
[1736915075350,3.09425,3231.8,3231.7,0.185]
[1736915075538,3.09442,3231.7,3231.6,0.185]
[1736915077033,3.12537473,3231.7,3231.6,0.185]
[1736915077969,3.09442,3231.7,3231.6,0.185]
[1736915078665,3.12537473,3231.7,3231.6,0.185]
[1736915080826,3.09463,3231.4,3231.2,0.7602]
[1736915081030,0.03095473,3231.3,3230.9,0.7602]
[1736915081314,0.03095473,3231.3,3231.0,0.185]
[1736915082618,0.03095473,3231.3,3230.9,0.7602]
[1736915082820,0.03095473,3231.3,3231.1,0.185]
[1736915083008,3.09495,3231.1,3230.4,0.7602]
[1736915083208,0.03095473,3231.3,3230.5,0.185]
[1736915083406,3.12571473,3231.3,3230.5,0.185]
[1736915083773,0.03095473,3231.3,3230.5,0.185]
[1736915083981,3.09482,3231.2,3230.5,0.185]
[1736915084622,0.03095473,3231.1,3230.5,0.185]
[1736915087425,3.09482,3231.2,3230.5,0.2159513]
[1736915087933,3.09482,3231.2,3230.5,0.185]
[1736915088228,3.12587473,3231.1,3230.4,0.7602]
[1736915088383,3.12587473,3231.1,3230.6,0.185]
[1736915088931,3.12587473,3231.1,3230.4,0.7602]
[1736915088932,3.09501,3231.0,3230.4,0.7602]
[1736915089113,3.12609473,3230.9,3230.4,0.7602]
[1736915089329,3.12609473,3230.9,3230.5,0.185]
[1736915100181,3.09521,3230.8,3230.5,0.185]
[1736915100345,0.03095473,3230.7,3230.5,0.185]
[1736915100878,0.03095473,3230.9,3230.5,0.185]
[1736915103082,3.52044146,3231.4,3230.5,0.185]
[1736915103265,3.52044146,3231.4,3230.5,0.21595402]
[1736915104089,0.8252,3232.2,3230.6,0.8002]
[1736915104230,3.09411,3232.0,3231.0,3.09501]
[1736915104454,3.9191,3232.2,3231.1,3.12585364]
[1736915104636,3.91896,3232.4,3231.3,3.09471]
[1736915104869,3.91896,3232.4,3231.5,0.8002]
[1736915105035,3.09351,3232.6,3231.7,0.8002]
[1736915105471,3.09329,3232.8,3231.9,0.8002]
[1736915105637,0.391849,3232.8,3231.9,0.8002]
[1736915105968,0.8252,3232.4,3231.3,0.8002]
[1736915106170,0.03095473,3232.3,3231.4,0.185]
[1736915106335,3.09409,3232.0,3231.4,0.185]
[1736915107031,0.03095473,3231.9,3231.4,0.185]
[1736915107238,0.03095473,3231.9,3231.5,0.185]
[1736915107456,3.09409,3232.0,3231.5,0.185]
[1736915107675,0.03095473,3231.9,3231.5,0.185]
[1736915108069,0.03095473,3231.9,3231.3,0.8002]
[1736915108232,0.03095473,3231.9,3231.0,0.8002]
[1736915108233,0.8252,3231.8,3231.0,0.8002]
[1736915108434,3.09454,3231.5,3231.1,0.185]
[1736915108635,0.03095473,3231.4,3231.1,0.185]
[1736915108834,3.09492,3231.1,3231.0,0.185]
[1736915115852,3.72606564,3231.2,3231.0,0.185]
[1736915116550,4.41961063,3231.2,3231.0,0.185]
[1736915116771,1.32475063,3231.2,3231.0,0.185]
[1736915116976,3.09492,3231.1,3231.0,0.185]
[1736915119388,3.72503693,3231.5,3231.0,0.185]
[1736915119589,3.09474,3231.3,3231.0,0.9373]
[1736915119791,3.12582473,3231.2,3231.0,0.185]
[1736915119992,3.09492,3231.1,3231.0,0.185]
[1736915120358,5.99475693,3231.1,3231.0,0.185]
[1736915121716,0.7845,3231.0,3229.6,0.7523]
[1736915121869,0.7845,3231.0,3229.7,0.185]
[1736915121870,3.09532,3230.7,3229.7,0.185]
[1736915122198,3.09532,3230.7,3229.8,0.03095541]
[1736915122401,3.09511,3230.9,3229.9,0.7523]
[1736915122692,3.09511,3230.9,3230.0,0.03095539]
[1736915122890,3.09511,3230.9,3229.9,0.7523]
[1736915122891,0.03095473,3230.8,3229.9,0.7832554]
[1736915123689,3.09511,3230.9,3229.9,0.7832554]
[1736915125165,0.03095473,3230.8,3229.9,0.7523]
[1736915125498,3.09511,3230.9,3230.0,0.03095542]
[1736915125661,3.84084726,3230.9,3230.0,0.03095542]
[1736915126094,0.61395238,3230.7,3230.0,0.03095542]
[1736915127406,3.84084726,3230.9,3230.0,0.03095542]
[1736915127604,6.02605166,3230.8,3229.9,0.7523]
[1736915127805,6.63215737,3230.8,3230.0,0.03095543]
[1736915128115,6.60120264,3230.8,3229.9,0.7523]
[1736915128269,6.60120264,3230.8,3230.0,0.03095544]
[1736915128804,0.03095473,3230.7,3229.9,0.7523]
[1736915129534,7.33589663,3230.8,3229.9,0.7523]
[1736915129707,0.03095473,3230.7,3229.9,0.7523]
[1736915130109,0.03095473,3230.7,3230.0,0.185]
[1736915130110,3.09571,3230.3,3230.0,0.185]
[1736915130308,0.03095473,3230.2,3230.0,0.185]
[1736915130604,2.89983693,3230.5,3230.0,0.185]
[1736915130605,5.99536693,3230.5,3230.0,0.185]
[1736915130913,3.80456142,3230.4,3230.0,0.185]
[1736915131082,3.09569,3230.3,3230.0,0.185]
[1736915133884,3.09587,3230.1,3230.0,0.185]
[1736915134589,3.12682473,3230.1,3230.0,0.185]
[1736915134796,3.7294909,3230.1,3230.0,0.185]
[1736915135370,3.69853617,3230.1,3230.0,0.185]
[1736915136821,3.09605,3230.0,3229.8,0.185]
[1736915137204,3.12700473,3230.0,3229.4,0.7589]
[1736915137533,3.09609,3229.9,3229.5,0.185]
[1736915138729,3.09591,3230.1,3229.4,0.7589]
[1736915139042,3.09591,3230.1,3229.5,0.185]
[1736915140334,3.09545,3230.6,3229.6,0.7589]
[1736915140547,3.09545,3230.6,3229.8,0.7589]
[1736915140700,0.03095473,3230.5,3229.8,0.7589]
[1736915141938,3.09545,3230.6,3229.9,0.03095734]
[1736915142341,3.09545,3230.6,3229.8,0.7589]
[1736915142838,0.03095473,3230.5,3229.8,0.7589]
[1736915143364,3.09504,3231.0,3230.0,0.7597]
[1736915143516,3.09504,3231.0,3230.1,0.03095551]
[1736915143717,3.09504,3231.0,3230.2,0.7597]
[1736915144014,0.03095473,3231.6,3230.6,0.7597]
[1736915144221,0.81803484,3231.7,3230.5,3.09547]
[1736915144222,3.0,3231.7,3230.8,0.7597]
[1736915144423,3.09447,3231.6,3230.8,0.7597]
[1736915145313,0.74275327,3231.6,3230.8,0.7597]
[1736915145549,3.09433,3231.8,3230.9,0.03094805]
[1736915145715,3.09439,3231.7,3231.0,0.7597]
[1736915145914,0.8143,3232.2,3231.1,0.03094661]
[1736915146149,3.09377,3232.3,3231.2,3.88545407]
[1736915146454,3.09377,3232.3,3231.3,0.7597]
[1736915146667,2.89983693,3232.7,3231.0,2.89983693]
[1736915146668,2.89983693,3232.7,3231.5,0.7597]
[1736915146957,3.09349,3232.6,3231.7,0.7597]
[1736915147196,3.09349,3232.6,3231.8,0.03093856]
[1736915147893,0.96987597,3233.1,3231.8,0.03093856]
[1736915148119,3.905,3233.4,3231.9,0.8102]
[1736915148253,3.905,3233.4,3232.0,0.03093485]
[1736915148591,0.61797891,3233.1,3232.1,0.8102]
[1736915148799,3.09324,3232.9,3232.2,0.03093521]
[1736915149360,3.09324,3232.9,3232.1,0.8102]
[1736915149576,0.03095473,3232.8,3232.1,0.8102]
[1736915150061,3.09324,3232.9,3232.2,0.03093522]
[1736915150260,3.09324,3232.9,3232.1,0.8102]
[1736915150485,3.12426473,3232.8,3232.1,0.8102]
[1736915150681,3.09344,3232.7,3232.1,0.8102]
[1736915153201,3.09317,3233.0,3232.1,0.8102]
[1736915153387,3.0932,3232.9,3232.1,0.8102]
[1736915155426,0.03095473,3232.8,3232.1,0.8102]
[1736915155627,3.12427473,3232.8,3232.1,0.8102]
[1736915156435,3.0937,3232.4,3232.1,0.8102]
[1736915156635,3.12472473,3232.3,3232.2,0.185]
[1736915156939,3.09388,3232.2,3231.9,0.185]
[1736915157144,3.12491473,3232.1,3231.7,0.8102]
[1736915157308,3.12491473,3232.1,3231.8,0.185]
[1736915158233,3.09415,3231.9,3231.8,0.185]
[1736915159752,3.09415,3231.9,3231.4,0.8102]
[1736915159753,2.89983693,3231.9,3231.4,0.8102]
[1736915160057,3.09434,3231.7,3231.6,0.185]
[1736915160351,3.09453,3231.6,3231.4,0.185]
[1736915162823,3.0,3231.8,3231.4,0.185]
[1736915163030,3.09436,3231.7,3231.4,0.185]
[1736915163558,3.09436,3231.7,3231.1,0.8102]
[1736915163718,3.09436,3231.7,3231.4,0.185]
[1736915164854,3.09436,3231.7,3231.1,0.8102]
[1736915165058,3.09436,3231.7,3231.4,0.185]
[1736915165227,3.99377969,3231.7,3231.4,0.185]
[1736915165433,3.99377969,3231.7,3231.1,0.8102]
[1736915165639,3.09436,3231.7,3231.4,0.185]
[1736915166522,3.09436,3231.7,3231.1,0.8102]
[1736915166724,3.09436,3231.7,3231.2,0.185]
[1736915167756,14.09,3234.3,3231.2,0.185]
[1736915167757,2.89983693,3232.5,3231.4,0.7705]
[1736915167953,0.65011041,3232.4,3231.5,0.7705]
[1736915168158,2.89983693,3231.9,3231.2,0.9555]
[1736915168324,3.09448,3231.6,3231.2,0.9555]
[1736915168519,3.09467,3231.4,3231.2,0.185]
[1736915170458,0.03095473,3231.3,3231.2,0.185]
[1736915170658,3.09467,3231.4,3231.2,0.185]
[1736915172223,0.03095473,3231.3,3231.2,0.185]
[1736915174361,0.31254347,3231.6,3231.2,0.185]
[1736915174550,3.09444,3231.6,3231.2,0.185]
[1736915175079,3.12523473,3231.8,3231.2,0.185]
[1736915177392,0.60738145,3231.9,3231.3,0.8044]
[1736915178451,3.09409,3232.0,3231.3,0.8044]
[1736915178452,3.09409,3232.0,3231.3,0.83534567]
[1736915178657,0.03095473,3231.9,3231.3,0.8044]
[1736915179860,3.09409,3232.0,3231.3,0.8044]
[1736915180396,3.7537,3232.4,3231.3,0.8044]
[1736915180701,3.09371,3232.4,3231.5,0.8044]
[1736915181357,3.09378,3232.3,3231.5,0.8044]
[1736915181559,0.7537,3232.7,3231.5,0.83534073]
[1736915181798,0.7537,3233.0,3231.6,0.8044]
[1736915181999,2.89983693,3233.1,3231.9,0.8044]
[1736915182000,3.09321,3232.9,3231.9,0.8044]
[1736915182297,3.09321,3232.9,3232.1,0.8044]
[1736915182460,3.09321,3232.9,3232.2,0.184]
[1736915183153,0.61295363,3233.1,3232.2,0.21493601]
[1736915183493,2.89983693,3233.3,3232.3,0.83533495]
[1736915183689,3.0978,3233.4,3232.4,0.8044]
[1736915183872,0.03095473,3233.3,3232.6,0.8044]
[1736915184910,0.64911456,3233.3,3232.6,0.8044]
[1736915185125,0.61815983,3233.3,3232.7,0.83533039]
[1736915185325,0.005,3233.4,3232.7,0.83533039]
[1736915185626,0.005,3233.4,3232.8,0.03092942]
[1736915185850,0.005,3233.4,3233.2,3.09287]
[1736915186065,0.005,3233.4,3233.3,3.30773179]
[1736915186194,0.005,3233.4,3233.3,4.11213179]
[1736915186396,0.005,3233.4,3233.3,7.11213179]
[1736915186712,0.005,3233.4,3233.3,7.08121]
[1736915187298,0.005,3233.4,3233.3,10.53104693]
[1736915189930,0.005,3233.4,3233.3,7.08121]
[1736915190146,0.005,3233.4,3233.3,9.98104693]
[1736915190434,0.005,3233.4,3233.3,10.53104693]
[1736915191729,0.005,3233.4,3233.3,9.98104693]
[1736915191918,0.005,3233.4,3233.3,7.08121]
[1736915192593,0.005,3233.4,3233.3,10.53104693]
[1736915203656,0.005,3233.4,3233.3,19.65104693]
[1736915203966,0.005,3233.4,3233.3,16.75121]
[1736915206066,0.7664,3235.1,3234.3,0.7607]
[1736915206230,0.7664,3235.1,3234.4,0.21491042]
[1736915206432,3.09073,3235.5,3234.5,3.09165]
[1736915206773,3.0903,3236.0,3234.9,3.0912]
[1736915206972,3.0903,3236.0,3235.0,0.03090513]
[1736915207127,3.0903,3236.0,3235.0,3.12206513]
[1736915207968,3.09012,3236.2,3235.1,3.0]
[1736915208150,3.09037,3235.9,3235.2,0.03090299]
[1736915208359,3.09037,3235.9,3235.3,0.184]
[1736915211590,0.7774,3235.5,3235.3,0.184]
[1736915211766,3.0908,3235.4,3235.3,0.184]
[1736915212113,0.7774,3235.5,3235.3,0.184]
[1736915213214,0.7774,3235.8,3235.3,0.184]
[1736915214469,0.7774,3236.1,3235.4,3.12167499]
[1736915215122,0.7774,3236.1,3235.5,3.0907]
[1736915215323,0.7774,3236.1,3235.6,0.03090213]
[1736915215624,5.89983693,3236.6,3235.6,0.03090213]
[1736915215625,0.7774,3236.6,3235.6,3.90989213]
[1736915217339,0.7774,3236.6,3235.6,0.81930213]
[1736915217471,0.7774,3236.6,3235.8,3.09039]
[1736915217669,0.7774,3236.6,3235.9,0.03089747]
[1736915218692,2.93079166,3236.5,3235.5,3.0]
[1736915218895,2.93079166,3236.5,3235.6,0.184]
[1736915218896,2.89983693,3236.2,3235.6,0.184]
[1736915219096,0.7774,3236.1,3235.6,0.184]
[1736915219905,0.80835473,3236.1,3234.9,0.7884]
[1736915220094,3.0903,3236.0,3235.0,3.184]
[1736915220299,3.0903,3236.0,3235.1,0.03090467]
[1736915220608,3.79794842,3236.0,3235.0,3.27517]
[1736915221109,3.79794842,3236.0,3235.1,0.03090468]
[1736915221499,3.79794842,3236.0,3235.2,0.184]
[1736915222513,0.70770842,3236.0,3235.1,0.03090468]
[1736915222717,0.70770842,3236.0,3235.2,0.184]
[1736915222718,3.09033,3235.9,3235.2,0.184]
[1736915223211,0.03095473,3235.8,3235.2,0.184]
[1736915223412,0.8192,3235.6,3235.2,0.184]
[1736915223713,0.85015473,3235.6,3235.2,0.184]
[1736915223888,0.8192,3235.6,3235.2,0.184]
[1736915224612,0.8192,3235.6,3235.3,0.184]
[1736915224816,0.8192,3235.9,3235.3,0.184]
[1736915225318,7.15400058,3235.9,3235.3,0.184]
[1736915225505,6.80936693,3235.9,3235.3,0.184]
[1736915228219,0.03095473,3235.8,3235.3,0.184]
[1736915229002,3.09068,3235.6,3235.4,0.184]
[1736915229216,0.03095473,3235.5,3235.4,0.184]
[1736915229720,0.03095473,3235.5,3234.6,3.7525]
[1736915229721,3.91,3235.4,3235.3,0.184]
[1736915230094,3.91,3235.4,3234.6,0.7525]
[1736915230298,3.91,3235.4,3234.7,0.184]
[1736915230499,0.03095473,3235.3,3234.7,0.184]
[1736915231523,3.09099,3235.2,3234.8,0.184]
[1736915231721,3.48510447,3235.2,3234.8,0.184]
[1736915231918,3.48510447,3235.2,3234.3,0.7525]
[1736915231919,3.48510447,3235.2,3234.9,0.184]
[1736915232122,3.48510447,3235.2,3234.1,7.90370435]
[1736915232123,3.09138,3234.8,3234.6,0.184]
[1736915232324,0.03095473,3234.9,3234.6,0.184]
[1736915232524,3.71903693,3235.1,3234.6,0.184]
[1736915232831,0.8192,3235.3,3234.6,0.184]
[1736915233031,0.8192,3235.3,3234.7,0.9365]
[1736915233201,0.03095473,3235.2,3234.7,0.184]
[1736915234939,0.03095473,3235.2,3234.5,0.7525]
[1736915235334,0.03095473,3235.2,3234.6,0.184]
[1736915235845,3.91019,3235.3,3234.6,0.21491179]
[1736915236725,0.8192,3235.3,3234.6,0.21491179]
[1736915236925,0.85015473,3235.3,3234.6,0.184]
[1736915238426,3.94114473,3235.3,3234.6,0.184]
[1736915238628,4.6252429,3235.3,3234.5,0.7525]
[1736915238814,2.89983693,3234.8,3234.6,0.184]
[1736915239013,2.89983693,3235.1,3234.6,0.184]
[1736915239228,2.89983693,3235.1,3234.3,3.03091616]
[1736915239529,2.89983693,3235.1,3234.4,0.184]
[1736915240155,2.89983693,3235.1,3234.4,0.21491193]
[1736915240312,2.89983693,3235.1,3234.4,0.184]
[1736915240765,3.85059,3234.9,3234.4,0.184]
[1736915241054,3.12236473,3234.8,3234.4,0.184]
[1736915241569,3.09141,3234.8,3234.4,0.184]
[1736915241776,3.12236473,3234.8,3234.4,0.184]
[1736915242573,3.09141,3234.8,3234.4,0.184]
[1736915242773,3.12236473,3234.8,3234.4,0.184]
[1736915243780,6.02220166,3234.8,3234.4,0.184]
[1736915243958,6.70035183,3234.8,3234.4,0.184]
[1736915244121,6.6693971,3234.8,3234.4,0.184]
[1736915244326,0.03095473,3234.7,3234.4,0.184]
[1736915244528,0.03095473,3234.7,3234.5,0.184]
[1736915244775,0.7593,3234.9,3234.5,0.184]
[1736915245032,2.89983693,3235.1,3234.6,0.03091508]
[1736915245188,0.8201,3235.3,3234.6,0.03091508]
[1736915245377,0.8201,3235.3,3234.7,0.8026]
[1736915246582,4.32706186,3235.9,3234.8,0.03091193]
[1736915246784,3.71993693,3235.9,3235.0,3.09119]
[1736915247097,3.71993693,3235.9,3235.1,0.03090487]
[1736915247237,3.75089166,3235.9,3235.1,0.03090487]
[1736915247443,3.75089166,3235.9,3235.0,3.09119]
[1736915247757,3.75089166,3235.9,3235.0,3.12209564]
[1736915248357,3.71993693,3235.9,3235.0,3.12209564]
[1736915248556,3.71993693,3236.2,3235.1,0.8026]
[1736915248796,3.71993693,3236.2,3235.3,3.89349]
[1736915249140,2.89983693,3236.2,3235.4,3.30568241]
[1736915249679,0.8201,3236.4,3235.4,0.21490241]
[1736915249927,2.89983693,3236.5,3235.7,3.0905]
[1736915250093,2.89983693,3236.5,3235.8,0.83349744]
[1736915250707,2.89983693,3236.5,3235.8,3.92391744]
[1736915251033,2.89983693,3236.2,3235.8,0.8026]
[1736915251240,5.98989693,3236.2,3235.5,0.8026]
[1736915251532,0.03095473,3236.1,3235.5,0.8026]
[1736915252978,2.89983693,3235.9,3235.6,0.184]
[1736915253195,6.80999693,3236.2,3235.6,0.184]
[1736915253938,0.03095473,3236.1,3235.6,0.184]
[1736915254234,6.80999693,3236.2,3235.6,0.184]
[1736915254802,0.03095473,3236.1,3235.7,0.184]
[1736915255428,6.80999693,3236.2,3235.4,0.8026]
[1736915255650,6.80999693,3236.2,3235.8,0.184]
[1736915256543,6.80999693,3236.2,3235.9,0.184]
[1736915256703,3.12113473,3236.1,3235.4,0.8026]
[1736915257146,3.12113473,3236.1,3235.5,0.184]
[1736915257444,3.09018,3236.1,3235.5,0.184]
[1736915258114,3.12113473,3236.1,3235.5,0.184]
[1736915258444,4.40093662,3236.2,3235.5,0.184]
[1736915258609,3.71993693,3236.2,3235.5,0.184]
[1736915259297,3.71993693,3236.2,3235.5,0.21490266]
[1736915259497,3.71993693,3236.2,3235.5,0.184]
[1736915260214,0.03095473,3236.1,3235.5,0.184]
[1736915260416,2.89983693,3235.9,3235.5,0.184]
[1736915261554,2.89983693,3235.6,3235.0,0.8026]
[1736915261763,0.6330569,3235.9,3234.6,0.8026]
[1736915261764,2.89983693,3235.3,3234.6,0.8026]
[1736915261914,2.89983693,3235.0,3234.7,0.184]
[1736915262098,0.8201,3235.5,3234.7,0.21491167]
[1736915262300,0.8201,3235.5,3234.7,3.30638167]
[1736915262549,2.89983693,3235.6,3234.7,3.30638167]
[1736915262550,0.8201,3235.8,3234.9,3.09125]
[1736915262727,0.8201,3235.8,3235.0,0.03090637]
[1736915263041,6.75275693,3236.2,3235.2,0.7511]
[1736915263246,6.75275693,3236.2,3235.3,0.03090475]
[1736915263454,6.75275693,3236.2,3235.4,0.7511]
[1736915263455,5.98995693,3236.2,3235.4,0.7511]
[1736915265143,0.03095473,3236.1,3235.4,0.7511]
[1736915265545,5.99018693,3235.9,3235.1,0.7511]
[1736915265698,0.03095473,3235.8,3235.1,0.7511]
[1736915266100,5.99018693,3235.9,3235.1,0.7511]
[1736915266457,2.89983693,3235.9,3235.1,0.7511]
[1736915266751,2.89983693,3236.2,3235.2,0.03090723]
[1736915266961,2.89983693,3236.2,3235.3,3.84199]
[1736915267160,2.89983693,3236.2,3234.7,0.184]
[1736915267161,6.75237693,3236.6,3235.6,0.7511]
[1736915267304,3.66263693,3236.6,3235.7,3.30538027]
[1736915267499,3.66263693,3236.6,3235.7,0.21490027]
[1736915267710,2.89983693,3236.6,3235.9,0.8169]
[1736915267904,2.89983693,3236.6,3236.0,0.03089846]
[1736915268161,4.4925141,3238.2,3236.1,0.8169]
[1736915268162,2.89983693,3237.1,3236.1,0.8169]
[1736915268305,2.89983693,3237.1,3236.3,3.90684]
[1736915268638,2.89983693,3237.1,3236.3,0.8169]
[1736915268949,2.89983693,3237.1,3236.4,0.03089398]
[1736915269969,2.89983693,3237.1,3236.5,0.8169]
[1736915270253,3.88043,3238.0,3237.0,3.08927]
[1736915270437,3.88043,3238.0,3237.1,0.84778675]
[1736915270642,0.7921,3238.0,3237.1,0.84778675]
[1736915270840,2.89983693,3238.1,3237.2,3.08908]
[1736915271023,0.6230572,3238.0,3237.3,0.03088473]
[1736915271213,0.65401193,3238.0,3237.2,3.11996471]
[1736915271976,2.89983693,3238.1,3237.2,3.11996471]
[1736915272284,2.89983693,3238.1,3237.3,0.8169]
[1736915272430,2.89983693,3238.1,3237.4,0.03088351]
[1736915272631,2.89983693,3238.1,3237.5,0.189]
[1736915273361,2.89983693,3238.1,3237.6,0.03088351]
[1736915273559,2.89983693,3238.1,3237.5,0.189]
[1736915273775,0.1662301,3238.2,3237.6,0.03088304]
[1736915274935,0.1662301,3238.2,3237.5,0.189]
[1736915276449,2.89983693,3238.1,3237.5,0.189]
[1736915276657,3.11927473,3238.0,3237.5,0.189]
[1736915279544,3.08832,3238.0,3237.5,0.189]
[1736915280340,3.11927473,3238.0,3237.5,0.189]
[1736915280774,3.08832,3238.0,3237.5,0.189]
[1736915281279,0.03095473,3237.9,3237.5,0.189]
[1736915281490,2.89983693,3237.9,3237.6,0.189]
[1736915281653,3.08827,3238.1,3237.6,0.189]
[1736915282179,3.11930473,3238.0,3237.6,0.189]
[1736915283445,3.08842,3237.9,3237.6,0.189]
[1736915283642,0.03095473,3237.8,3237.6,0.189]
[1736915283885,3.11950473,3237.8,3237.3,0.8169]
[1736915284052,3.08855,3237.8,3237.3,0.8169]
[1736915284254,3.08864,3237.7,3237.4,0.189]
[1736915285098,0.03095473,3237.6,3237.5,0.189]
[1736915285304,6.47091999,3237.6,3237.5,0.189]
[1736915285451,6.43996526,3237.6,3237.5,0.189]
[1736915285848,5.98853693,3237.6,3237.5,0.189]
[1736915287016,5.98853693,3237.6,3236.9,0.7923]
[1736915287175,5.98853693,3237.6,3237.0,0.189]
[1736915287680,0.03095473,3237.5,3236.9,0.7923]
[1736915287879,0.03095473,3237.5,3237.0,0.189]
[1736915288275,3.11979473,3237.5,3237.1,0.189]
[1736915288509,3.08891,3237.4,3237.1,0.189]
[1736915288687,0.45422626,3237.5,3237.0,0.189]
[1736915288688,3.08909,3237.2,3237.0,0.189]
[1736915289496,3.08909,3237.2,3236.5,0.7923]
[1736915289707,0.03095473,3237.1,3236.6,0.189]
[1736915290022,3.08935,3237.0,3236.6,0.189]
[1736915290322,3.12032473,3236.9,3236.6,0.189]
[1736915290477,2.89983693,3237.0,3236.6,0.189]
[1736915290674,3.08917,3237.2,3236.6,0.189]
[1736915291211,3.72355712,3237.2,3236.6,0.189]
[1736915292316,3.72355712,3237.2,3236.7,0.189]
[1736915292531,0.7842,3238.0,3236.8,0.7923]
[1736915292708,2.89983693,3237.7,3236.8,0.7923]
[1736915293029,3.08881,3237.5,3236.8,0.7923]
[1736915293180,0.62460732,3237.6,3236.9,0.0308926]
[1736915293378,0.62460732,3237.6,3236.8,0.7923]
[1736915293584,0.65556205,3237.6,3236.8,0.82318984]
[1736915293809,0.65556205,3237.6,3236.8,0.7923]
[1736915294921,2.89983693,3237.4,3236.8,0.7923]
[1736915295139,3.11995473,3237.3,3236.8,0.7923]
[1736915295428,3.11995473,3237.3,3236.9,0.189]
[1736915296744,3.08928,3237.0,3236.9,0.189]
[1736915296935,0.7842,3236.9,3236.1,0.7923]
[1736915297087,0.03095473,3236.8,3236.2,0.189]
[1736915298082,0.65954295,3236.8,3236.2,0.189]
[1736915298287,3.74902295,3236.8,3236.2,0.189]
[1736915298484,0.65954295,3236.8,3236.2,0.189]
[1736915300242,3.08965,3236.7,3236.3,0.189]
[1736915300538,4.07257534,3236.8,3236.3,0.189]
[1736915300539,4.04162061,3236.8,3236.3,0.189]
[1736915300837,0.7842,3236.9,3236.3,0.189]
[1736915301414,3.0,3237.0,3236.3,0.189]
[1736915301621,3.88739,3237.3,3236.4,0.7827]
[1736915302351,2.89983693,3237.6,3236.5,0.81359571]
[1736915302652,0.7984,3237.7,3236.5,0.7827]
[1736915302653,2.89983693,3237.3,3236.5,0.7827]
[1736915302856,0.03095473,3237.2,3236.5,0.7827]
[1736915304715,0.65360061,3237.2,3236.5,0.7827]
[1736915306081,0.65360061,3237.2,3236.6,0.186]
[1736915306303,0.7984,3237.1,3236.6,0.186]
[1736915306717,0.03095473,3237.0,3236.2,0.7827]
[1736915306920,2.93079166,3237.0,3236.3,0.186]
[1736915307269,6.02014166,3237.0,3236.3,0.186]
[1736915307470,2.93079166,3237.0,3236.3,0.186]
[1736915307716,3.08949,3236.8,3236.3,0.186]
[1736915308010,0.03095473,3236.7,3236.3,0.186]
[1736915308367,3.08949,3236.8,3236.3,0.186]
[1736915309202,0.03095473,3236.7,3236.3,0.186]
[1736915309404,3.12044473,3236.8,3236.3,0.186]
[1736915310124,3.08968,3236.6,3236.2,0.7827]
[1736915310418,3.08968,3236.6,3236.3,0.186]
[1736915312421,0.60202817,3236.8,3236.2,0.7827]
[1736915312628,3.08984,3236.5,3236.4,0.186]
[1736915313450,3.08986,3236.4,3235.9,0.8319]
[1736915313595,0.03095473,3236.3,3236.0,0.186]
[1736915314238,3.08986,3236.4,3236.0,0.186]
[1736915314953,3.12081473,3236.4,3236.0,0.186]
[1736915316328,3.08986,3236.4,3236.0,0.186]
[1736915316943,3.12081473,3236.4,3236.0,0.186]
[1736915318921,3.08986,3236.4,3236.0,0.186]
[1736915319313,0.03095473,3236.3,3236.0,0.186]
[1736915319823,0.03095473,3236.3,3236.1,0.186]
[1736915320030,0.60477167,3236.5,3236.1,0.186]
[1736915322063,0.03095473,3236.4,3236.1,0.186]
[1736915324285,2.93079166,3236.4,3235.1,0.8319]
[1736915324462,3.09003,3236.3,3235.3,0.8319]
[1736915324662,3.09005,3236.2,3235.4,0.03090448]
[1736915324994,3.09005,3236.2,3235.5,0.186]
[1736915325806,3.09014,3236.1,3235.5,0.186]
[1736915326350,0.61773192,3236.0,3235.5,0.186]
[1736915328248,2.89983693,3235.6,3235.3,0.7534]
[1736915328506,0.03095473,3235.5,3235.3,0.7534]
[1736915328792,4.07878911,3236.0,3235.4,0.186]
[1736915328793,3.09044,3235.8,3235.4,0.186]
[1736915328978,3.12150473,3235.7,3235.4,0.186]
[1736915329698,3.12150473,3235.7,3235.5,0.186]
[1736915330292,3.09061,3235.6,3235.5,0.186]
[1736915332453,5.99044693,3235.6,3235.5,0.186]
[1736915332710,4.3100771,3235.6,3235.4,0.184]
[1736915332906,2.89983693,3235.3,3235.2,0.184]
[1736915333194,5.99076693,3235.3,3235.2,0.184]
[1736915333878,3.09073,3235.5,3235.2,0.184]
[1736915337258,0.63468665,3235.4,3235.2,0.184]
[1736915339618,0.66564138,3235.4,3235.2,0.184]
[1736915340861,0.63468665,3235.4,3235.2,0.184]
[1736915341371,0.03095473,3235.3,3235.2,0.184]
[1736915341569,0.63468665,3235.4,3235.2,0.184]
[1736915344061,0.63468665,3235.4,3235.3,0.7914]